bitfinex-derivatives/quotes_SOLF0:USTF0_20241227
["timestamp","ask_amount","ask_price","bid_price","bid_amount"]
[1735297436565,13.18835376,191.01,190.95,2.6216]
[1735297436868,13.18835376,191.01,190.96,4.70779031]
[1735297437069,2.6212,190.99,190.94,2.6218]
[1735297437364,2.6212,190.99,190.95,4.70782893]
[1735297437558,2.6212,190.99,190.96,4.70782893]
[1735297437763,2.6212,190.99,190.94,2.6218]
[1735297437967,2.6212,190.99,190.95,4.71085613]
[1735297438261,2.6212,190.99,190.9,16.48835376]
[1735297438467,2.6212,190.99,190.95,2.6217]
[1735297438668,2.6212,190.99,190.96,4.71272594]
[1735297438872,2.6212,190.99,190.95,2.6217]
[1735297439064,2.6212,190.99,190.96,4.71269511]
[1735297439264,2.6212,190.99,190.95,2.6217]
[1735297439569,2.6212,190.99,190.96,4.71269431]
[1735297439867,13.18835376,191.01,190.95,2.6217]
[1735297440063,2.621,191.0,190.96,4.71456342]
[1735297440266,2.621,191.0,190.95,2.6217]
[1735297440467,2.621,191.0,190.96,4.71455831]
[1735297440667,2.621,191.0,190.9,16.48835376]
[1735297440668,13.18835376,191.04,190.97,4.71453677]
[1735297440864,13.18835376,191.04,190.98,4.71453677]
[1735297441063,13.18835376,191.04,190.91,4.8373]
[1735297441264,2.6211,191.0,190.92,4.71478364]
[1735297441563,13.18835376,191.01,190.93,4.71478364]
[1735297441758,13.18835376,191.01,190.94,4.71478364]
[1735297441964,13.18835376,191.01,190.88,3.3]
[1735297442276,13.18835376,191.01,190.89,4.71555663]
[1735297442567,13.18835376,191.01,190.9,4.71555663]
[1735297442769,13.18835376,191.01,190.91,4.71555663]
[1735297442969,2.6213,190.98,190.94,2.6218]
[1735297443672,2.6213,190.98,190.88,3.3]
[1735297443866,2.6213,190.98,190.92,2.622]
[1735297444068,2.6213,190.98,190.93,4.71684881]
[1735297444261,13.18835376,191.01,190.88,3.3]
[1735297444463,13.18835376,191.01,190.89,4.71688897]
[1735297444668,13.18835376,191.01,190.9,4.71688897]
[1735297444868,2.621,191.0,190.95,2.6216]
[1735297445173,3.3,191.03,190.89,18.01205376]
[1735297445372,3.3,191.03,190.9,4.71651788]
[1735297445573,3.3,191.03,190.91,4.71651788]
[1735297445765,3.3,191.03,190.92,4.71651788]
[1735297445969,13.18835376,191.01,190.89,18.01205376]
[1735297446171,2.6213,190.99,190.95,2.6217]
[1735297446471,13.18835376,191.01,190.89,18.01205376]
[1735297446671,15.80925376,191.01,190.96,2.6216]
[1735297446976,15.80925376,191.01,190.89,18.01205376]
[1735297446977,3.1066,191.05,190.94,3.3]
[1735297447164,3.1066,191.05,191.01,2.6208]
[1735297447567,7.10879555,191.06,190.95,16.48835376]
[1735297447765,7.10879555,191.06,191.04,2.6205]
[1735297447962,7.10879555,191.06,190.98,13.18835376]
[1735297447963,7.10879555,191.06,191.01,3.3]
[1735297448172,7.10879555,191.06,191.02,4.71653068]
[1735297448374,7.10879555,191.06,191.05,2.6203]
[1735297448875,2.6195,191.11,191.01,16.48835376]
[1735297449063,2.6195,191.11,191.02,4.7154257]
[1735297449267,2.6195,191.11,191.01,16.48835376]
[1735297449462,2.6195,191.11,191.04,2.6203]
[1735297449675,2.6195,191.11,191.01,16.48835376]
[1735297450273,2.6195,191.11,191.04,2.6205]
[1735297450463,2.6195,191.11,191.01,16.48835376]
[1735297450662,2.6194,191.12,191.02,4.71501669]
[1735297450864,2.6194,191.12,191.03,4.71474779]
[1735297451264,2.6194,191.12,191.06,2.6201]
[1735297451669,4.7237,191.13,191.08,2.6199]
[1735297451865,4.7237,191.13,191.05,3.28]
[1735297452266,2.6199,191.09,191.05,3.28]
[1735297452472,13.18835376,191.11,191.02,3.28]
[1735297452671,4.7237,191.13,191.03,4.71397459]
[1735297452976,11.83249555,191.13,191.02,3.28]
[1735297453177,11.83249555,191.13,191.03,4.71397297]
[1735297453374,11.83249555,191.13,191.02,3.28]
[1735297453771,11.83249555,191.13,191.03,2.6205]
[1735297453772,2.6199,191.09,191.03,2.6205]
[1735297454472,2.6199,191.09,191.02,3.28]
[1735297454668,2.6199,191.09,191.04,2.6205]
[1735297456675,2.6197,191.1,191.04,2.6205]
[1735297457276,2.6195,191.12,191.07,2.6201]
[1735297458276,2.6195,191.11,191.05,2.6203]
[1735297458477,2.6195,191.11,191.02,3.28]
[1735297458672,2.6195,191.11,191.03,4.72117809]
[1735297458878,7.343,191.13,191.07,2.6199]
[1735297459378,4.7237,191.13,191.07,2.6199]
[1735297459873,2.6194,191.12,191.07,2.6199]
[1735297460277,2.6194,191.12,191.08,2.6199]
[1735297460976,4.7237,191.13,191.09,2.6198]
[1735297461177,13.18835376,191.14,191.02,3.28]
[1735297461374,7.10879555,191.16,191.04,13.18835376]
[1735297461577,7.10879555,191.16,191.11,2.6194]
[1735297462075,7.10879555,191.16,191.09,2.6198]
[1735297462280,34.51474042,191.17,191.09,2.6198]
[1735297462281,13.18835376,191.17,191.09,2.6198]
[1735297462781,2.6192,191.14,191.09,2.6198]
[1735297462977,13.18835376,191.17,191.08,3.28]
[1735297463181,13.18835376,191.17,191.1,2.6196]
[1735297463382,2.6192,191.14,191.08,3.28]
[1735297464179,13.18835376,191.17,191.08,3.28]
[1735297464382,2.6192,191.13,191.09,2.6197]
[1735297464584,13.18835376,191.14,191.04,3.28]
[1735297464785,13.18835376,191.14,191.05,2.6203]
[1735297464786,2.6197,191.1,191.05,2.6203]
[1735297465179,2.6197,191.1,191.03,3.28]
[1735297466182,13.18835376,191.14,191.03,3.28]
[1735297466383,2.6195,191.11,191.06,2.6202]
[1735297466677,13.18835376,191.14,190.99,4.8197]
[1735297466879,2.6204,191.05,191.0,7.34272018]
[1735297467085,2.6204,191.05,190.97,3.28]
[1735297467281,2.6204,191.05,190.98,4.72259164]
[1735297467482,2.6204,191.05,190.99,4.72259164]
[1735297467687,13.18835376,191.05,191.0,4.72259164]
[1735297467876,13.18835376,191.05,190.94,8.094]
[1735297468082,13.18835376,191.05,190.95,4.72281376]
[1735297468382,2.6206,191.03,190.97,2.6213]
[1735297469077,13.18835376,191.05,190.94,8.094]
[1735297469284,4.8129,191.07,190.95,17.91191931]
[1735297469480,13.18835376,191.08,190.96,4.72356555]
[1735297469681,13.18835376,191.08,191.02,2.6206]
[1735297469877,13.18835376,191.08,190.95,13.18835376]
[1735297470074,13.18835376,191.08,190.96,4.7231688]
[1735297470285,13.18835376,191.08,190.97,4.7231688]
[1735297470486,13.18835376,191.08,190.98,4.7231688]
[1735297470687,13.18835376,191.08,190.99,4.7231688]
[1735297470881,13.18835376,191.08,190.95,13.18835376]
[1735297471077,13.18835376,191.08,190.96,4.72334772]
[1735297471280,13.18835376,191.08,190.95,13.18835376]
[1735297471281,13.18835376,191.08,190.97,4.72334772]
[1735297471492,2.6202,191.07,190.98,4.72334772]
[1735297471688,2.6202,191.07,190.99,4.72334772]
[1735297471987,20.29714931,191.11,191.0,3.28]
[1735297472178,20.29714931,191.11,191.0,8.00338755]
[1735297472384,7.10879555,191.11,191.01,4.72338755]
[1735297472587,1.6537,191.12,191.02,4.72300298]
[1735297472888,28.43518221,191.13,191.03,4.72300298]
[1735297473090,28.43518221,191.13,191.04,4.72300298]
[1735297473291,28.43518221,191.13,191.05,4.72300298]
[1735297473590,13.18835376,191.14,191.06,8.00300298]
[1735297473883,13.18835376,191.14,191.06,3.28]
[1735297474491,13.18835376,191.14,191.09,2.6198]
[1735297474679,13.18835376,191.14,191.06,3.28]
[1735297475195,2.6194,191.12,191.06,5.9002]
[1735297475384,13.18835376,191.14,191.06,3.28]
[1735297475686,14.82855376,191.17,191.12,2.6193]
[1735297475880,28.43518221,191.16,191.06,3.28]
[1735297476084,28.43518221,191.16,191.07,4.7214531]
[1735297476393,28.43518221,191.16,191.08,4.7214531]
[1735297476691,14.82855376,191.17,191.09,4.7214531]
[1735297476884,14.82855376,191.17,191.06,3.28]
[1735297477086,14.82855376,191.17,191.07,4.72007451]
[1735297477288,14.82855376,191.17,191.08,4.72007451]
[1735297477487,13.18835376,191.17,191.12,2.6192]
[1735297478689,15.80705376,191.17,191.12,2.6192]
[1735297479681,2.6187,191.17,191.12,2.6192]
[1735297479889,2.6183,191.2,191.15,2.6189]
[1735297480893,7.10879555,191.21,191.12,3.28]
[1735297481087,15.80645376,191.22,191.16,2.6188]
[1735297481986,15.80645376,191.22,191.12,3.28]
[1735297482184,13.18835376,191.22,191.12,3.28]
[1735297482686,15.80645376,191.22,191.16,2.6188]
[1735297482890,13.18835376,191.22,191.12,3.28]
[1735297484392,13.18835376,191.19,191.12,3.28]
[1735297484896,2.619,191.16,191.1,2.6196]
[1735297485284,2.6184,191.19,191.08,3.28]
[1735297485490,13.18835376,191.22,191.09,4.71588164]
[1735297485690,13.18835376,191.22,191.1,4.71588164]
[1735297485892,2.6181,191.21,191.15,2.6189]
[1735297487190,13.18835376,191.22,191.16,2.6187]
[1735297487596,13.18835376,191.22,191.09,4.7162982]
[1735297487796,2.6183,191.2,191.15,2.619]
[1735297488000,13.18835376,191.22,191.15,2.619]
[1735297488693,13.18835376,191.22,191.1,4.71811542]
[1735297488900,13.18835376,191.19,191.1,3.28]
[1735297489596,2.619,191.15,191.1,2.6196]
[1735297489789,13.18835376,191.16,191.03,1.5197]
[1735297489996,3.1707,191.14,191.04,3.28]
[1735297490197,3.1707,191.14,191.05,4.72072153]
[1735297490400,3.1707,191.14,191.04,3.28]
[1735297490594,2.6194,191.12,191.07,2.6201]
[1735297491896,13.18835376,191.13,191.03,1.5197]
[1735297492089,13.18835376,191.13,191.04,4.72704049]
[1735297492295,13.18835376,191.13,191.05,4.72852463]
[1735297492495,2.6198,191.1,191.05,2.6203]
[1735297496397,3.1707,191.14,191.02,3.28]
[1735297496598,31.05418221,191.16,191.11,2.6195]
[1735297496799,28.43518221,191.16,191.08,3.28]
[1735297497102,28.43518221,191.16,191.09,4.72780896]
[1735297497303,28.43518221,191.16,191.08,3.28]
[1735297497304,2.6187,191.17,191.11,2.6194]
[1735297498000,2.6184,191.2,191.08,3.28]
[1735297498203,7.10879555,191.2,191.09,4.72746589]
[1735297498504,7.10879555,191.2,191.13,2.6193]
[1735297498706,7.10879555,191.2,191.08,3.28]
[1735297499101,28.60338666,191.21,191.09,4.72669707]
[1735297499102,13.18835376,191.19,191.09,4.72669707]
[1735297499300,13.18835376,191.19,191.1,4.72669707]
[1735297499501,13.18835376,191.19,191.11,4.72669707]
[1735297499702,13.18835376,191.19,191.08,3.28]
[1735297500001,13.18835376,191.19,191.09,4.72689647]
[1735297500205,13.18835376,191.19,191.1,4.72689647]
[1735297500407,2.6187,191.18,191.13,2.6193]
[1735297500602,13.18835376,191.19,191.13,2.6193]
[1735297500802,13.18835376,191.19,191.08,3.28]
[1735297501002,4.6588,191.21,191.09,4.72673445]
[1735297501209,4.6588,191.21,191.08,3.28]
[1735297501405,4.6588,191.21,191.09,4.72663722]
[1735297501603,4.6588,191.21,191.1,4.72663722]
[1735297501908,4.6588,191.21,191.11,4.72663722]
[1735297502104,4.6588,191.21,191.08,3.28]
[1735297502105,4.6588,191.21,191.12,4.72663722]
[1735297502310,4.6588,191.21,191.08,3.28]
[1735297502504,2.6185,191.19,191.14,2.6191]
[1735297503010,13.18835376,191.19,191.03,4.7575]
[1735297503213,13.18835376,191.19,191.05,13.18835376]
[1735297503511,13.18835376,191.19,191.06,4.7268981]
[1735297503705,13.18835376,191.19,191.08,13.18835376]
[1735297503907,13.18835376,191.19,191.09,4.7268981]
[1735297504109,13.18835376,191.19,191.1,8.00621833]
[1735297504411,15.80695376,191.19,191.14,2.6191]
[1735297504706,13.18835376,191.19,191.1,3.28]
[1735297504901,13.18835376,191.19,191.14,2.6191]
[1735297505106,13.18835376,191.19,191.1,3.28]
[1735297505306,13.18835376,191.19,191.11,4.72572209]
[1735297505509,13.18835376,191.19,191.15,2.6189]
[1735297505905,2.6183,191.2,191.15,2.6189]
[1735297506812,2.6183,191.2,191.16,2.6188]
[1735297507307,4.6588,191.21,191.17,2.6187]
[1735297507509,4.6588,191.21,191.11,4.72497708]
[1735297507712,4.6588,191.21,191.12,4.72497708]
[1735297507911,7.2771,191.21,191.16,2.6188]
[1735297508312,2.6183,191.2,191.16,2.6188]
[1735297511809,11.76759555,191.21,191.08,13.18835376]
[1735297512009,13.18835376,191.19,191.09,4.72477729]
[1735297512212,13.18835376,191.16,191.03,17.94585376]
[1735297512407,2.6197,191.1,191.05,2.6203]
[1735297512609,13.18835376,191.13,191.06,4.7263178]
[1735297512907,4.8277,191.12,191.04,3.3]
[1735297513112,4.8277,191.12,191.05,4.72700244]
[1735297513314,4.8277,191.12,191.0,13.18835376]
[1735297513514,4.8277,191.12,191.01,4.72980653]
[1735297513710,13.18835376,191.1,191.02,4.72980653]
[1735297514015,13.18835376,191.1,191.01,2.6208]
[1735297514217,13.18835376,191.07,191.02,4.7292969]
[1735297514417,13.18835376,191.07,190.95,3.3]
[1735297514715,13.18835376,191.07,190.96,4.73201336]
[1735297514913,13.18835376,191.07,190.97,4.73201336]
[1735297515114,36.56288221,191.12,190.98,4.73201336]
[1735297515115,13.18835376,191.1,190.98,4.73201336]
[1735297515314,15.80815376,191.1,191.02,2.6207]
[1735297515621,7.10879555,191.09,191.03,4.73201336]
[1735297515919,7.10879555,191.09,191.06,2.6202]
[1735297516418,8.1277,191.12,191.02,3.3]
[1735297516721,8.1277,191.12,191.03,4.73312702]
[1735297516914,4.8277,191.12,191.04,4.73312702]
[1735297517108,4.8277,191.12,191.05,4.73312702]
[1735297517313,2.6192,191.14,191.08,2.6199]
[1735297517518,28.43518221,191.15,191.09,4.73338635]
[1735297517714,28.43518221,191.15,191.03,13.18835376]
[1735297517919,31.05418221,191.15,191.09,2.6198]
[1735297518109,21.32638666,191.15,191.03,14.83835376]
[1735297518309,4.848,191.17,191.06,13.18835376]
[1735297518619,4.848,191.17,191.11,2.6194]
[1735297519610,4.848,191.17,191.1,2.6197]
[1735297520213,2.6192,191.14,191.09,2.6198]
[1735297522222,15.80735376,191.16,191.1,2.6196]
[1735297522720,13.18835376,191.16,191.1,2.6196]
[1735297523111,2.6193,191.14,191.08,3.3]
[1735297523318,2.6193,191.14,191.09,4.73398622]
[1735297523616,2.6193,191.14,191.08,3.3]
[1735297523815,2.6193,191.14,191.09,4.7341344]
[1735297524018,2.6193,191.14,191.08,5.92]
[1735297524219,2.6193,191.14,191.09,4.73431993]
[1735297524513,2.6193,191.13,191.08,5.92]
[1735297524713,13.18835376,191.16,191.09,7.35384666]
[1735297524919,13.18835376,191.16,191.09,2.6198]
[1735297525123,13.18835376,191.16,191.08,3.3]
[1735297525317,13.18835376,191.16,191.12,2.6193]
[1735297525715,13.18835376,191.16,191.08,3.3]
[1735297525914,13.18835376,191.16,191.1,2.6197]
[1735297526118,2.6191,191.14,191.08,3.3]
[1735297526319,2.6191,191.14,191.09,4.73476029]
[1735297526519,2.6191,191.14,191.08,3.3]
[1735297526716,2.6191,191.14,191.09,7.3545894]
[1735297526921,2.6191,191.14,191.09,2.6197]
[1735297527322,2.619,191.15,191.08,3.3]
[1735297527520,2.619,191.15,191.09,4.73536868]
[1735297527721,2.619,191.15,191.1,4.73536868]
[1735297527915,2.619,191.15,191.1,2.6197]
[1735297528319,33.28318221,191.17,191.08,3.3]
[1735297528521,28.43518221,191.17,191.09,4.73552268]
[1735297528718,28.43518221,191.18,191.1,4.73504422]
[1735297529025,28.43518221,191.18,191.11,4.73504422]
[1735297529215,28.43518221,191.18,191.12,4.73504422]
[1735297529416,28.43518221,191.18,191.13,4.73504422]
[1735297529617,28.43518221,191.18,191.16,2.6187]
[1735297529820,7.10879555,191.21,191.16,2.6187]
[1735297530022,7.10879555,191.21,191.1,14.78715376]
[1735297530220,7.10879555,191.21,191.11,4.73394882]
[1735297530423,7.10879555,191.21,191.11,1.6785]
[1735297530624,7.10879555,191.21,191.13,13.18835376]
[1735297530832,7.10879555,191.21,191.2,2.6183]
[1735297531029,7.10879555,191.21,191.14,3.3]
[1735297531221,20.29714931,191.23,191.15,4.73199725]
[1735297531421,20.29714931,191.23,191.16,4.73199725]
[1735297531629,20.29714931,191.23,191.14,3.3]
[1735297531630,7.10879555,191.23,191.17,4.73199725]
[1735297531830,7.10879555,191.23,191.18,4.73199725]
[1735297532026,41.62353597,191.26,191.14,3.3]
[1735297532231,41.62353597,191.26,191.15,4.73118039]
[1735297532435,2.6178,191.24,191.18,2.6185]
[1735297532932,20.29714931,191.26,191.14,3.3]
[1735297533132,20.29714931,191.26,191.22,2.618]
[1735297533335,20.29714931,191.26,191.14,3.3]
[1735297533630,20.29714931,191.26,191.15,4.72951026]
[1735297533830,30.11468221,191.27,191.23,2.6179]
[1735297534025,30.11468221,191.27,191.2,3.3]
[1735297534026,28.43518221,191.27,191.2,3.3]
[1735297534238,28.43518221,191.27,191.25,2.6176]
[1735297534936,28.43518221,191.3,191.25,2.6175]
[1735297535832,28.43518221,191.3,191.2,3.3]
[1735297536032,21.93084931,191.32,191.27,2.6173]
[1735297536332,21.93084931,191.32,191.2,3.3]
[1735297536541,7.10879555,191.32,191.28,2.6172]
[1735297536737,7.10879555,191.32,191.22,13.18835376]
[1735297536943,7.10879555,191.32,191.3,2.6169]
[1735297537240,7.10879555,191.32,191.23,4.72039751]
[1735297537440,7.10879555,191.32,191.27,2.6172]
[1735297537638,7.10879555,191.32,191.22,13.18835376]
[1735297537830,7.10879555,191.32,191.23,4.7170144]
[1735297538035,41.62353597,191.36,191.29,2.617]
[1735297538442,41.62353597,191.36,191.26,3.3]
[1735297538642,28.43518221,191.36,191.33,2.6165]
[1735297538843,28.43518221,191.38,191.33,2.6165]
[1735297539944,2.6162,191.36,191.3,2.6168]
[1735297540847,18.01065376,191.39,191.28,3.3]
[1735297541048,2.6164,191.34,191.28,5.9171]
[1735297542942,13.18835376,191.36,191.28,3.3]
[1735297543142,15.80455376,191.36,191.3,2.6169]
[1735297544052,13.18835376,191.36,191.3,2.6169]
[1735297544246,2.6163,191.35,191.3,2.6169]
[1735297545947,15.80445376,191.36,191.31,2.6168]
[1735297546950,2.616,191.38,191.28,3.3]
[1735297547156,18.01065376,191.39,191.28,3.3]
[1735297547354,13.18835376,191.39,191.28,3.3]
[1735297548146,13.18835376,191.39,191.31,2.6168]
[1735297548345,13.18835376,191.39,191.28,3.3]
[1735297548947,15.80365376,191.42,191.36,2.616]
[1735297549749,13.18835376,191.42,191.36,2.616]
[1735297549956,2.6155,191.41,191.3,4.68680178]
[1735297550258,13.18835376,191.42,191.35,2.6162]
[1735297551059,2.6155,191.41,191.29,13.18835376]
[1735297553466,13.18835376,191.42,191.35,2.6162]
[1735297553758,2.6156,191.4,191.35,2.6162]
[1735297555755,13.18835376,191.42,191.34,3.32]
[1735297555962,4.6342,191.44,191.34,3.32]
[1735297557063,2.6152,191.43,191.38,2.6158]
[1735297557762,2.6152,191.43,191.34,3.32]
[1735297557964,2.6155,191.41,191.34,3.32]
[1735297558764,2.6156,191.4,191.36,2.616]
[1735297559158,2.6156,191.4,191.34,3.32]
[1735297559360,2.6156,191.4,191.35,2.6162]
[1735297559865,2.6156,191.4,191.36,2.6161]
[1735297560368,2.6158,191.39,191.34,3.32]
[1735297560663,13.18835376,191.42,191.34,5.9364]
[1735297560861,13.18835376,191.42,191.29,13.18835376]
[1735297561056,13.18835376,191.39,191.26,13.18835376]
[1735297561267,13.18835376,191.36,191.27,3.32]
[1735297561760,13.18835376,191.33,191.24,4.8078]
[1735297561968,13.18835376,191.33,191.24,8.1278]
[1735297562161,2.617,191.3,191.25,2.6176]
[1735297562764,2.6172,191.28,191.22,1.84893848]
[1735297562962,13.18835376,191.3,191.22,1.84893848]
[1735297563269,13.18835376,191.3,191.19,8.00353532]
[1735297563462,13.18835376,191.3,191.2,2.6183]
[1735297563955,13.18835376,191.3,191.18,4.8939]
[1735297564161,13.18835376,191.3,191.22,2.618]
[1735297565169,2.6174,191.27,191.2,2.6182]
[1735297565367,2.6174,191.27,191.18,4.8939]
[1735297565666,2.6174,191.27,191.19,4.68897418]
[1735297565964,2.6174,191.27,191.18,4.8939]
[1735297566165,2.6174,191.27,191.19,4.68897418]
[1735297566360,2.6174,191.27,191.2,4.69124117]
[1735297566558,2.6174,191.27,191.21,2.6181]
[1735297567864,13.18835376,191.27,191.17,3.32]
[1735297568062,15.80615376,191.24,191.18,4.69606935]
[1735297568362,15.80615376,191.24,191.14,13.18835376]
[1735297568363,15.80615376,191.24,191.15,3.32]
[1735297568556,15.80615376,191.24,191.16,4.69653241]
[1735297568760,2.6181,191.22,191.17,4.69653241]
[1735297568957,13.18835376,191.24,191.13,3.32]
[1735297569269,13.18835376,191.21,191.14,4.6993763]
[1735297569469,13.18835376,191.21,191.12,3.32]
[1735297569763,13.18835376,191.21,191.13,4.69939703]
[1735297569967,13.18835376,191.21,191.12,3.32]
[1735297570168,13.18835376,191.21,191.13,4.69958503]
[1735297570369,13.18835376,191.21,191.14,4.69958503]
[1735297570568,2.6184,191.2,191.14,2.6191]
[1735297571366,13.18835376,191.21,191.15,2.6189]
[1735297571671,13.18835376,191.21,191.12,3.32]
[1735297571870,13.18835376,191.21,191.13,4.70350907]
[1735297572067,13.18835376,191.21,191.14,4.70654339]
[1735297572365,13.18835376,191.21,191.15,2.6189]
[1735297572566,13.18835376,191.21,191.12,3.32]
[1735297572766,13.18835376,191.21,191.08,16.46835376]
[1735297572964,2.6189,191.16,191.09,7.98581069]
[1735297573165,2.6189,191.16,191.1,4.70581069]
[1735297573364,2.6189,191.16,191.08,3.28]
[1735297573571,2.6187,191.17,191.11,2.6194]
[1735297574372,2.6187,191.17,191.12,2.6194]
[1735297574967,28.43518221,191.24,191.08,16.46835376]
[1735297575269,13.18835376,191.24,191.11,13.18835376]
[1735297575473,13.18835376,191.24,191.12,4.70620071]
[1735297575668,2.6184,191.2,191.15,2.6189]
[1735297575971,13.18835376,191.24,191.12,3.28]
[1735297576175,15.80615376,191.24,191.19,2.6184]
[1735297576568,13.18835376,191.24,191.15,4.70519154]
[1735297576774,16.46835376,191.24,191.15,2.6189]
[1735297576971,16.46835376,191.24,191.12,3.28]
[1735297577174,16.46835376,191.24,191.19,2.6183]
[1735297577375,13.18835376,191.24,191.19,2.6183]
[1735297577772,13.18835376,191.24,191.12,3.28]
[1735297577974,13.18835376,191.24,191.13,4.70495131]
[1735297578177,13.18835376,191.24,191.14,4.70495131]
[1735297578473,1.6528,191.25,191.12,3.28]
[1735297578474,1.6528,191.25,191.15,4.70495131]
[1735297578779,1.6528,191.25,191.16,4.70495131]
[1735297578984,1.6318,191.26,191.17,4.70485422]
[1735297579182,1.5406,191.27,191.22,2.6179]
[1735297579477,13.18835376,191.29,191.18,3.28]
[1735297579671,13.18835376,191.29,191.19,4.70400322]
[1735297579873,13.18835376,191.29,191.2,4.70400322]
[1735297580182,13.18835376,191.29,191.18,6.5201]
[1735297580183,13.18835376,191.29,191.21,4.70346277]
[1735297580383,1.614,191.31,191.22,4.70316532]
[1735297580586,1.614,191.31,191.21,3.28]
[1735297580780,16.45295376,191.32,191.22,4.70362405]
[1735297580984,13.18835376,191.35,191.23,4.70362405]
[1735297581183,13.18835376,191.35,191.23,13.18835376]
[1735297581385,13.18835376,191.35,191.24,4.70251543]
[1735297581577,13.18835376,191.35,191.31,2.6168]
[1735297581782,4.8104,191.37,191.27,3.28]
[1735297581985,4.8104,191.37,191.28,4.70238783]
[1735297582186,13.18835376,191.38,191.29,4.70238783]
[1735297582388,13.18835376,191.38,191.3,4.70238783]
[1735297582583,13.18835376,191.38,191.28,1.6294]
[1735297582789,13.18835376,191.38,191.29,4.70155162]
[1735297582982,13.18835376,191.38,191.3,4.70155162]
[1735297583184,13.18835376,191.38,191.28,1.6294]
[1735297583386,13.18835376,191.38,191.29,4.70096289]
[1735297583687,13.18835376,191.38,191.34,2.6164]
[1735297583887,13.18835376,191.41,191.34,2.6164]
[1735297584086,15.80375376,191.41,191.34,2.6163]
[1735297586983,4.8004,191.43,191.33,3.28]
[1735297587188,13.18835376,191.41,191.33,3.28]
[1735297587482,2.6157,191.39,191.33,5.8965]
[1735297588484,13.18835376,191.41,191.35,2.6162]
[1735297588686,13.18835376,191.41,191.33,3.28]
[1735297589288,13.18835376,191.44,191.33,3.28]
[1735297589590,13.18835376,191.44,191.39,2.6157]
[1735297589790,13.18835376,191.44,191.33,3.28]
[1735297591093,13.18835376,191.44,191.36,2.6163]
[1735297591295,13.18835376,191.44,191.33,3.28]
[1735297592192,13.18835376,191.44,191.3,3.28]
[1735297592701,2.6156,191.42,191.35,2.6164]
[1735297593491,2.6156,191.42,191.3,3.28]
[1735297593696,13.18835376,191.44,191.32,13.18835376]
[1735297594493,13.18835376,191.44,191.33,4.6924767]
[1735297594694,13.18835376,191.44,191.32,13.18835376]
[1735297594895,13.18835376,191.44,191.33,4.69242534]
[1735297595096,13.18835376,191.44,191.32,13.18835376]
[1735297595293,13.18835376,191.44,191.33,4.69216766]
[1735297595499,13.18835376,191.44,191.39,2.6158]
[1735297596196,13.18835376,191.44,191.36,3.28]
[1735297596395,13.18835376,191.44,191.35,3.28]
[1735297596893,4.7908,191.48,191.35,16.46835376]
[1735297596894,13.18835376,191.47,191.35,16.46835376]
[1735297597693,13.18835376,191.47,191.35,3.28]
[1735297599193,2.6151,191.45,191.4,2.6157]
[1735297601404,15.80325376,191.47,191.35,3.28]
[1735297601600,15.80325376,191.47,191.41,2.6155]
[1735297602202,13.18835376,191.47,191.42,2.6154]
[1735297602999,15.80325376,191.47,191.42,2.6154]
[1735297603401,13.18835376,191.47,191.41,2.6156]
[1735297604409,2.6149,191.46,191.41,2.6156]
[1735297606108,13.18835376,191.47,191.36,4.659]
[1735297606306,13.18835376,191.47,191.43,2.6152]
[1735297606509,13.18835376,191.47,191.36,4.659]
[1735297607403,2.6149,191.46,191.36,4.659]
[1735297609012,2.6149,191.46,191.39,2.6159]
[1735297609217,2.6149,191.46,191.36,4.659]
[1735297610910,15.80315376,191.47,191.43,2.6154]
[1735297611217,13.18835376,191.47,191.43,2.6154]
[1735297612124,15.80305376,191.48,191.43,2.6154]
[1735297613314,15.80305376,191.48,191.44,2.6152]
[1735297613719,13.18835376,191.48,191.36,4.659]
[1735297613923,13.18835376,191.48,191.45,2.6151]
[1735297614122,8.39571258,191.46,191.45,2.6151]
[1735297614510,8.39571258,191.46,191.38,8.39571258]
[1735297614710,8.39571258,191.46,191.43,2.6153]
[1735297616017,8.39571258,191.44,191.43,2.6153]
[1735297617119,8.39571258,191.44,191.41,2.6155]
[1735297620117,7.10879555,191.45,191.4,8.39571258]